bitfinex-derivatives/quotes_SOLF0:USTF0_20241010
["timestamp","ask_amount","ask_price","bid_price","bid_amount"]
[1728570403421,45.75,136.31,136.25,0.12502]
[1728570403626,55.25,136.31,136.25,0.12502]
[1728570403928,58.84381303,136.31,136.25,0.12502]
[1728570404324,45.75,136.28,136.25,0.12502]
[1728570404927,58.83721012,136.31,136.25,0.12502]
[1728570406226,55.25,136.31,136.25,0.12502]
[1728570406424,62.51306192,136.31,136.26,3.6729]
[1728570406629,55.25,136.31,136.25,0.12502]
[1728570406928,58.94554805,136.31,136.25,0.12502]
[1728570407133,49.44554805,136.31,136.27,3.6725]
[1728570407327,45.75,136.31,136.27,3.6725]
[1728570408427,3.6725,136.28,136.25,0.12502]
[1728570408734,1.38,136.36,136.26,45.75]
[1728570408735,9.5,136.34,136.26,45.75]
[1728570409026,13.1708,136.34,136.26,45.75]
[1728570409431,13.1708,136.34,136.27,1.4665]
[1728570409628,13.1708,136.34,136.29,3.6719]
[1728570409629,7.27392251,136.34,136.29,3.6719]
[1728570410425,3.60312251,136.34,136.27,1.4665]
[1728570410623,13.1706,136.35,136.31,3.6714]
[1728570410834,3.60716106,136.36,136.27,1.4665]
[1728570411031,3.6703,136.36,136.32,3.671]
[1728570411227,7.29141242,136.36,136.32,3.671]
[1728570411427,7.29141242,136.36,136.28,1.4601]
[1728570411931,3.6703,136.36,136.28,1.4601]
[1728570412235,7.4221151,136.36,136.32,3.671]
[1728570412530,13.29512,136.37,136.28,5.2185217]
[1728570412841,13.29512,136.37,136.28,1.4601]
[1728570413135,0.12502,136.37,136.28,50.91053043]
[1728570413325,3.85554717,136.37,136.3,45.75]
[1728570413530,3.72451625,136.37,136.31,1.3717]
[1728570413725,0.12502,136.37,136.31,1.3717]
[1728570414144,45.75,136.35,136.28,1.4601]
[1728570414533,49.50328324,136.35,136.28,1.4601]
[1728570415334,49.50328324,136.35,136.32,3.6711]
[1728570415633,45.75,136.33,136.25,0.12502]
[1728570415840,45.75,136.29,136.25,0.12502]
[1728570416227,49.49337334,136.29,136.25,0.12502]
[1728570417234,3.6725,136.28,136.25,0.12502]
[1728570418127,45.75,136.29,136.25,0.12502]
[1728570418328,49.39170509,136.29,136.25,0.12502]
[1728570418530,45.75,136.26,136.2,0.12518]
[1728570418742,3.6742,136.21,136.16,3.6756]
[1728570419041,3.63816384,136.21,136.12,49.35621468]
[1728570419240,45.87502,136.25,136.13,4.46012]
[1728570419241,9.5,136.22,136.13,4.46012]
[1728570419433,3.73364406,136.21,136.13,4.46012]
[1728570419736,3.73364406,136.21,136.18,3.675]
[1728570419927,9.5,136.22,136.18,3.675]
[1728570420133,13.11539548,136.22,136.13,4.46012]
[1728570420335,13.1737,136.23,136.18,3.6749]
[1728570420528,45.87502,136.25,136.14,45.75]
[1728570420735,13.37555672,136.25,136.14,45.75]
[1728570420935,13.37555672,136.25,136.16,45.75]
[1728570421233,3.87555672,136.25,136.16,45.75]
[1728570421538,0.12502,136.25,136.24,3.6734]
[1728570421737,0.12502,136.25,136.19,45.75]
[1728570423040,0.12502,136.25,136.24,3.6734]
[1728570424439,45.75,136.34,136.28,3.6721]
[1728570424636,3.75172225,136.3,136.28,3.6721]
[1728570424945,13.1711,136.33,136.24,3.6734]
[1728570425139,3.73500936,136.31,136.21,52.10245048]
[1728570425338,0.12502,136.31,136.21,52.10245048]
[1728570425657,0.12502,136.31,136.23,45.75]
[1728570425944,3.81175514,136.31,136.21,52.10245048]
[1728570426241,3.73611097,136.31,136.29,3.672]
[1728570426443,0.12502,136.31,136.21,52.10245048]
[1728570426743,0.12502,136.31,136.3,3.6718]
[1728570428547,0.12502,136.37,136.29,3.62251283]
[1728570428744,45.75,136.33,136.3,1.4357]
[1728570428949,49.42390641,136.33,136.25,9.62502]
[1728570429250,49.42390641,136.33,136.26,1.4357]
[1728570429447,45.75,136.36,136.26,1.4357]
[1728570429645,3.68602061,136.35,136.27,1.4623]
[1728570429856,0.12502,136.37,136.28,45.75]
[1728570430149,0.12502,136.37,136.33,3.671]
[1728570430450,0.12502,136.37,136.29,3.73154063]
[1728570430750,0.12502,136.37,136.31,3.6714]
[1728570430949,0.12502,136.37,136.29,3.73154063]
[1728570431649,0.12502,136.37,136.34,3.6707]
[1728570432245,91.5,136.35,136.26,3.6727]
[1728570432448,45.75,136.3,136.25,0.12502]
[1728570432840,45.75,136.3,136.26,3.6727]
[1728570433048,45.75,136.3,136.25,0.12502]
[1728570434046,3.6722,136.29,136.25,0.12502]
[1728570434353,45.75,136.3,136.25,0.12502]
[1728570435059,3.6725,136.28,136.25,0.12502]
[1728570435369,45.75,136.3,136.25,0.12502]
[1728570435656,3.671,136.33,136.25,0.12502]
[1728570435855,58.7177389,136.35,136.3,3.6718]
[1728570436048,58.7177389,136.35,136.25,0.12502]
[1728570436849,45.75,136.3,136.25,0.12502]
[1728570437156,45.75,136.36,136.26,45.75]
[1728570437360,3.6709,136.34,136.26,49.42451988]
[1728570437651,45.75,136.48,136.33,45.75]
[1728570437857,3.74053257,136.45,136.37,45.75]
[1728570438056,45.75,136.5,136.42,3.6686]
[1728570438258,45.75,136.53,136.42,45.75]
[1728570438652,3.6664,136.51,136.42,45.75]
[1728570438857,3.82186162,136.49,136.42,45.75]
[1728570439155,0.12502,136.49,136.42,45.75]
[1728570439555,0.12502,136.49,136.44,45.75]
[1728570440053,0.12502,136.49,136.43,1.4561]
[1728570440357,0.12502,136.49,136.47,3.667]
[1728570440561,0.12502,136.49,136.47,45.75]
[1728570440857,0.12502,136.55,136.54,3.6654]
[1728570441060,0.12502,136.55,136.52,9.86]
[1728570442551,0.12502,136.55,136.54,45.75]
[1728570442751,3.57526178,136.64,136.58,73.75]
[1728570442956,0.12502,136.67,136.63,45.75]
[1728570443252,0.12502,136.67,136.56,79.26]
[1728570443253,0.12502,136.67,136.65,45.75]
[1728570443457,0.12502,136.73,136.66,10.28]
[1728570443660,0.12502,136.73,136.72,3.6605]
[1728570443866,0.12502,136.79,136.71,56.03]
[1728570444550,0.12502,136.79,136.71,10.28]
[1728570444860,3.78392,136.79,136.72,13.9405]
[1728570445063,0.12502,136.79,136.72,10.28]
[1728570445355,0.12502,136.79,136.72,56.03]
[1728570445560,0.12502,136.79,136.7,45.75]
[1728570445961,0.12502,136.79,136.71,10.28]
[1728570446149,0.12502,136.79,136.7,45.75]
[1728570446563,0.12502,136.79,136.71,10.28]
[1728570446968,45.87502,136.79,136.68,45.75]
[1728570447159,45.87502,136.79,136.69,10.28]
[1728570447465,45.87502,136.79,136.72,3.6603]
[1728570447761,45.87502,136.79,136.69,10.28]
[1728570448155,0.12502,136.79,136.7,45.75]
[1728570448865,0.12502,136.79,136.72,45.75]
[1728570449351,0.12502,136.79,136.7,47.1423]
[1728570449553,45.87502,136.79,136.71,10.28]
[1728570449853,49.53392,136.79,136.72,3.6603]
[1728570450165,45.87502,136.79,136.71,10.28]
[1728570450564,45.87502,136.79,136.73,3.66]
[1728570450565,0.12502,136.79,136.73,3.66]
[1728570450766,0.12502,136.79,136.71,10.28]
[1728570451068,0.12502,136.79,136.75,3.6597]
[1728570451561,0.12502,136.79,136.77,3.6589]
[1728570451760,0.12502,136.79,136.77,10.28]
[1728570452260,0.12502,136.79,136.78,3.6589]
[1728570452463,0.12502,136.79,136.78,49.4089]
[1728570452659,3.655,136.93,136.84,3.6571]
[1728570452860,45.87502,136.91,136.8,45.75]
[1728570453059,45.87502,136.91,136.81,10.8]
[1728570453259,3.6563,136.88,136.82,10.8]
[1728570453961,45.75,136.89,136.82,10.8]
[1728570455161,45.75,136.89,136.79,0.12502]
[1728570455468,45.75,136.89,136.8,10.8]
[1728570455669,3.6565,136.88,136.82,3.6578]
[1728570455869,49.36397055,136.89,136.79,0.12502]
[1728570456169,3.6573,136.85,136.8,10.8]
[1728570456379,0.12502,136.91,136.8,10.8]
[1728570456560,0.12502,136.91,136.81,45.75]
[1728570456971,0.12502,136.91,136.82,10.8]
[1728570456972,45.75,136.88,136.82,10.8]
[1728570457170,45.75,136.88,136.81,10.8]
[1728570457370,3.6568,136.86,136.81,10.8]
[1728570457668,47.1237,136.95,136.81,10.8]
[1728570457669,0.12502,137.09,136.85,91.62502]
[1728570457874,0.12502,137.09,136.96,45.75]
[1728570458168,49.44840923,137.09,136.97,59.1674]
[1728570458362,3.6515,137.06,136.99,3.6531]
[1728570458665,49.44840923,137.09,136.97,59.1674]
[1728570458865,3.6512,137.07,136.97,59.1674]
[1728570459265,45.87502,137.09,136.97,59.1674]
[1728570459564,45.87502,137.09,137.02,45.75]
[1728570459565,0.12502,137.09,137.02,45.75]
[1728570459963,3.77592,137.09,137.02,49.4025]
[1728570460164,0.12502,137.09,136.99,45.75]
[1728570460667,3.6509,137.08,137.02,3.6525]
[1728570461270,3.6509,137.08,137.02,15.5925]
[1728570461461,0.12502,137.09,137.02,15.5925]
[1728570461666,3.77592,137.09,137.02,15.5925]
[1728570461870,0.12502,137.09,137.02,61.3425]
[1728570462167,0.12502,137.09,137.03,3.6522]
[1728570462364,0.12502,137.09,137.02,57.69]
[1728570463275,0.12502,137.09,137.06,45.75]
[1728570463869,0.12502,137.09,137.05,11.94]
[1728570464069,0.12502,137.09,137.06,45.75]
[1728570464966,0.12502,137.09,137.06,49.4014]
[1728570465473,0.12502,137.09,137.06,45.75]
[1728570465674,0.12502,137.09,137.06,57.69]
[1728570466074,0.12502,137.09,137.07,3.6512]
[1728570466275,0.12502,137.09,137.06,57.69]
[1728570466781,0.12502,137.09,137.08,3.6509]
[1728570467167,0.12502,137.09,137.03,45.75]
[1728570467375,0.12502,137.09,137.04,11.94]
[1728570467676,0.12502,137.09,137.06,3.6513]
[1728570467871,0.12502,137.09,137.05,11.94]
[1728570468170,0.12502,137.09,137.06,3.6514]
[1728570468575,0.12502,137.09,137.05,11.94]
[1728570469476,0.12502,137.09,137.06,3.6514]
[1728570470077,0.12502,137.09,137.07,3.6511]
[1728570470672,0.12502,137.09,137.06,3.6513]
[1728570471181,0.12502,137.09,137.05,11.94]
[1728570471672,0.12502,137.09,136.97,0.12502]
[1728570471867,45.75,137.05,136.97,0.12502]
[1728570472876,3.6524,137.03,136.97,3.77882]
[1728570473076,45.75,137.05,136.97,3.77882]
[1728570473271,45.75,137.05,136.97,0.12502]
[1728570473883,3.6527,137.02,136.97,0.12502]
[1728570474678,0.12502,137.09,137.01,91.5]
[1728570474877,0.12502,137.15,137.01,91.5]
[1728570474878,0.12502,137.15,137.08,45.75]
[1728570475075,0.12502,137.15,137.09,3.6506]
[1728570475381,0.12502,137.15,137.08,45.75]
[1728570475575,0.12502,137.15,137.14,3.6493]
[1728570475780,0.12502,137.15,137.08,45.75]
[1728570476172,0.12502,137.15,137.12,3.6498]
[1728570476372,3.77422,137.15,137.08,45.75]
[1728570476578,0.12502,137.15,137.08,45.75]
[1728570476777,0.12502,137.15,137.11,3.6501]
[1728570476978,3.6493,137.14,137.08,45.75]
[1728570477179,0.12502,137.15,137.08,45.75]
[1728570477578,3.77412,137.15,137.11,3.6501]
[1728570477775,0.12502,137.15,137.11,3.6501]
[1728570478185,0.12502,137.15,137.11,3.6499]
[1728570478386,0.12502,137.15,137.08,45.75]
[1728570478685,0.12502,137.15,137.11,3.65]
[1728570478982,0.12502,137.15,137.11,45.75]
[1728570479174,0.12502,137.15,137.12,11.92]
[1728570479374,0.12502,137.15,137.13,3.6494]
[1728570479575,0.12502,137.15,137.12,11.92]
[1728570481079,0.12502,137.15,137.14,3.6493]
[1728570481575,0.12502,137.15,137.12,15.5698]
[1728570481776,0.12502,137.15,137.12,11.92]
[1728570482176,0.12502,137.15,137.13,3.6496]
[1728570482377,0.12502,137.15,137.13,11.92]
[1728570482576,0.12502,137.15,137.12,1.3467]
[1728570482774,0.12502,137.15,137.09,11.92]
[1728570483182,3.6494,137.14,137.1,3.6502]
[1728570483380,3.6494,137.14,137.09,11.92]
[1728570483579,0.12502,137.15,137.09,11.92]
[1728570483788,0.12502,137.15,137.09,15.5706]
[1728570483985,0.12502,137.15,137.09,11.92]
[1728570484182,3.6497,137.13,137.09,15.5706]
[1728570484382,0.12502,137.15,137.09,11.92]
[1728570484780,3.6502,137.11,137.09,11.92]
[1728570484989,0.12502,137.15,137.09,11.92]
[1728570485186,0.12502,137.15,137.07,11.92]
[1728570485593,3.6502,137.11,137.07,15.571]
[1728570485882,0.12502,137.15,137.07,11.92]
[1728570486088,3.6501,137.12,137.08,3.6509]
[1728570486293,0.12502,137.15,137.07,11.92]
[1728570486685,0.12502,137.15,137.07,3.651]
[1728570487087,0.12502,137.15,137.06,57.67]
[1728570487386,3.6495,137.14,137.09,45.75]
[1728570487594,0.12502,137.15,137.09,45.75]
[1728570487779,3.65,137.12,137.09,45.75]
[1728570487980,0.12502,137.15,137.09,45.75]
[1728570488485,0.12502,137.15,137.12,45.75]
[1728570489194,0.12502,137.15,137.11,11.7]
[1728570490486,3.77412,137.15,137.12,3.6497]
[1728570490687,0.12502,137.15,137.11,11.7]
[1728570491086,0.12502,137.15,137.09,45.75]
[1728570491494,3.6495,137.14,137.1,3.6503]
[1728570491696,0.12502,137.15,137.1,3.6503]
[1728570492195,3.6495,137.14,137.1,3.6503]
[1728570492395,0.12502,137.15,137.1,3.6503]
[1728570492598,0.12502,137.15,137.07,45.75]
[1728570492899,0.12502,137.15,137.05,13.0467]
[1728570493286,3.6499,137.12,137.07,45.75]
[1728570493788,3.6497,137.13,137.09,3.6504]
[1728570494091,3.6497,137.13,137.07,45.75]
[1728570494394,3.6495,137.14,137.1,3.6502]
[1728570495192,0.12502,137.15,137.09,45.75]
[1728570495493,0.12502,137.27,137.14,45.75]
[1728570495684,3.685891,137.27,137.19,45.75]
[1728570496294,3.647,137.23,137.19,45.75]
[1728570496586,3.685891,137.27,137.15,1.3426]
[1728570496587,67.76,137.25,137.15,1.3426]
[1728570496793,3.6481,137.19,137.15,1.3426]
[1728570497093,79.46,137.25,137.15,1.3426]
[1728570497300,3.6481,137.19,137.15,1.3426]
[1728570497494,57.45,137.25,137.15,1.3426]
[1728570498185,11.7,137.25,137.15,1.3426]
[1728570498385,11.7,137.25,137.16,45.75]
[1728570498997,57.45,137.25,137.14,45.75]
[1728570499295,57.45,137.25,137.13,45.75]
[1728570499296,45.75,137.24,137.13,45.75]
[1728570499493,3.6484,137.18,137.13,45.75]
[1728570499898,1.3484,137.23,137.13,45.75]
[1728570500094,2.7886,137.23,137.13,45.75]
[1728570500295,45.75,137.19,137.1,1.3382]
[1728570500496,49.40853753,137.19,137.1,1.3382]
[1728570500691,3.6493,137.15,137.11,3.65]
[1728570500999,45.75,137.16,137.09,0.12502]
[1728570501391,3.6489,137.16,137.12,3.6499]
[1728570501794,3.65853753,137.19,137.09,0.12502]
[1728570502088,45.75,137.16,137.09,0.12502]
[1728570502494,3.6497,137.13,137.1,3.6503]
[1728570502690,49.34799387,137.16,137.09,0.12502]
[1728570502892,1.4473,137.15,137.09,0.12502]
[1728570503092,3.6503,137.11,137.09,0.12502]
[1728570503293,45.75,137.14,137.09,0.12502]
[1728570503496,45.75,137.11,137.03,0.12502]
[1728570503700,3.6514,137.07,137.03,3.77722]
[1728570503895,45.75,137.11,137.03,0.12502]
[1728570504198,45.75,137.07,136.99,3.6531]
[1728570504491,49.35419857,137.07,136.97,0.12502]
[1728570504696,3.6526,137.02,136.98,3.6535]
[1728570505096,45.75,137.04,136.97,0.12502]
[1728570505301,11.7,137.05,136.97,0.12502]
[1728570505489,3.6524,137.03,136.99,3.6532]
[1728570506100,3.6527,137.02,136.97,3.77862]
[1728570506494,11.7,137.05,136.97,3.77862]
[1728570506699,45.75,137.04,136.97,0.12502]
[1728570506892,45.75,137.02,136.97,0.12502]
[1728570507303,3.6529,137.01,136.97,3.77882]
[1728570507509,47.1325,137.04,136.97,0.12502]
[1728570508308,1.3825,137.04,136.97,0.12502]
[1728570509406,3.6521,137.04,136.97,0.12502]
[1728570509901,3.6524,137.03,136.98,3.6535]
[1728570510607,47.1361,137.06,136.99,3.6531]
[1728570510608,3.6521,137.04,136.99,3.6531]
[1728570511199,47.1361,137.06,136.97,0.12502]
[1728570511397,1.3861,137.06,136.98,45.75]
[1728570511698,0.12502,137.09,136.99,1.4733]
[1728570511909,3.6511,137.08,137.03,3.6521]
[1728570512405,0.12502,137.09,137.07,3.6511]
[1728570512601,0.12502,137.09,137.0,57.47]
[1728570513002,3.77582,137.09,137.04,3.6518]
[1728570513303,104.44799387,137.16,137.0,57.47]
[1728570513304,0.12502,137.27,137.09,0.12502]
[1728570513507,3.57244382,137.25,137.14,45.75]
[1728570513706,3.57244382,137.25,137.15,11.72]
[1728570513707,3.77252,137.21,137.15,11.72]
[1728570514001,0.12502,137.21,137.15,11.72]
[1728570514310,0.12502,137.21,137.18,45.75]
[1728570514808,0.12502,137.21,137.2,3.6477]
[1728570514999,0.12502,137.21,137.18,45.75]
[1728570515402,0.12502,137.21,137.19,3.6478]
[1728570516305,0.12502,137.21,137.16,49.3986]
[1728570516609,0.12502,137.21,137.16,57.45]
[1728570517308,0.12502,137.21,137.17,3.6484]
[1728570517503,0.12502,137.21,137.13,45.75]
[1728570517700,0.12502,137.21,137.14,11.6]
[1728570519808,0.12502,137.21,137.17,3.6484]
[1728570520417,0.12502,137.21,137.14,11.6]
[1728570520418,0.12502,137.21,137.15,3.649]
[1728570520714,0.12502,137.21,137.14,11.6]
[1728570520909,3.6477,137.2,137.14,11.6]
[1728570521110,3.6477,137.2,137.15,3.649]
[1728570521707,3.6477,137.2,137.14,11.6]
[1728570522008,3.77252,137.21,137.16,3.6488]
[1728570522317,0.12502,137.21,137.15,45.75]
[1728570523114,0.12502,137.21,137.18,45.75]
[1728570523505,0.12502,137.21,137.19,3.6477]
[1728570523820,0.12502,137.21,137.19,11.58]
[1728570524117,0.12502,137.21,137.2,3.6477]
[1728570525200,3.77092,137.27,137.2,3.6477]
[1728570525413,0.12502,137.27,137.26,3.6461]
[1728570526909,0.12502,137.27,137.24,3.6466]
[1728570527115,0.12502,137.27,137.23,11.58]
[1728570527508,0.12502,137.27,137.26,3.6461]
[1728570527709,0.12502,137.27,137.23,11.58]
[1728570527915,0.12502,137.27,137.24,3.6464]
[1728570528109,0.12502,137.27,137.23,11.58]
[1728570528516,0.12502,137.27,137.25,3.6463]
[1728570530516,0.12502,137.39,137.26,91.5]
[1728570530713,1.3412,137.49,137.38,45.75]
[1728570530921,3.76632,137.45,137.4,3.6424]
[1728570531219,0.12502,137.45,137.38,45.75]
[1728570531414,3.6414,137.44,137.39,3.6425]
[1728570531720,0.12502,137.45,137.38,45.75]
[1728570531921,0.12502,137.45,137.38,57.33]
[1728570533025,0.12502,137.45,137.42,45.75]
[1728570533529,0.12502,137.45,137.43,3.6416]
[1728570534510,0.12502,137.45,137.35,47.1912]
[1728570534714,0.12502,137.45,137.36,11.58]
[1728570535214,3.642,137.42,137.37,3.643]
[1728570535517,45.75,137.44,137.35,13.0212]
[1728570535720,3.6424,137.41,137.36,3.6435]
[1728570536350,3.6426,137.4,137.35,3.6437]
[1728570536517,47.1776,137.44,137.35,3.6437]
[1728570536816,45.75,137.42,137.33,0.12502]
[1728570537023,45.75,137.39,137.33,0.12502]
[1728570537528,3.6438,137.35,137.33,0.12502]
[1728570537821,3.6433,137.37,137.33,0.12502]
[1728570538024,11.58,137.38,137.33,0.12502]
[1728570538412,3.6438,137.35,137.33,0.12502]
[1728570538722,11.58,137.38,137.33,0.12502]
[1728570539119,3.6437,137.36,137.33,0.12502]
[1728570539320,11.58,137.38,137.33,0.12502]
[1728570540209,3.6442,137.34,137.29,1.4513]
[1728570540420,12.9819,137.38,137.29,1.4513]
[1728570540620,12.9819,137.38,137.28,3.6455]
[1728570540621,45.75,137.36,137.28,3.6455]
[1728570540814,45.75,137.34,137.27,0.12502]
[1728570541024,45.75,137.34,137.27,3.77062]
[1728570541322,3.645,137.31,137.27,3.77062]
[1728570541522,58.7319,137.38,137.32,3.6443]
[1728570541717,3.6438,137.35,137.27,0.12502]
[1728570541920,58.7319,137.38,137.27,0.12502]
[1728570542321,3.6437,137.36,137.27,0.12502]
[1728570542623,58.7319,137.38,137.27,11.70502]
[1728570542827,3.6436,137.36,137.32,3.6443]
[1728570543214,58.7319,137.38,137.27,11.70502]
[1728570543421,3.6441,137.34,137.3,3.6449]
[1728570543723,7.72918117,137.51,137.29,78.7]
[1728570543932,0.12502,137.51,137.42,45.75]
[1728570544224,3.6401,137.49,137.42,56.87]
[1728570544723,3.80451002,137.51,137.42,56.87]
[1728570545829,3.6405,137.48,137.43,3.6415]
[1728570546024,25.81451002,137.51,137.42,56.87]
[1728570546527,3.80451002,137.51,137.42,60.5119]
[1728570546923,3.6407,137.47,137.42,60.5119]
[1728570547133,25.81451002,137.51,137.42,56.87]
[1728570548331,3.6409,137.46,137.42,60.5117]
[1728570548723,25.81451002,137.51,137.42,56.87]
[1728570548933,25.81451002,137.51,137.41,3.642]
[1728570548934,3.76632,137.45,137.41,3.642]
[1728570549529,3.6414,137.44,137.41,3.642]
[1728570549731,0.12502,137.45,137.4,49.3923]
[1728570550237,3.6414,137.44,137.4,49.3923]
[1728570550534,3.6418,137.43,137.4,45.75]
[1728570551127,3.6415,137.44,137.4,45.75]
[1728570551423,0.12502,137.45,137.4,45.75]
[1728570551736,345.3848,137.52,137.37,11.12]
[1728570551737,0.12502,137.57,137.37,11.12]
[1728570551925,0.12502,137.57,137.5,45.75]
[1728570552126,3.6397,137.51,137.46,3.6407]
[1728570552331,45.75,137.55,137.42,49.44602241]
[1728570552535,67.76,137.55,137.42,45.75]
[1728570552737,49.3897,137.51,137.46,3.6407]
[1728570552938,45.75,137.51,137.46,3.6407]
[1728570553134,45.75,137.51,137.41,13.0468]
[1728570553340,45.75,137.49,137.41,13.0468]
[1728570553834,49.3902,137.49,137.45,0.12502]
[1728570554336,3.6406,137.47,137.45,0.12502]
[1728570554733,45.75,137.49,137.45,0.12502]
[1728570554940,3.6405,137.48,137.45,0.12502]
[1728570556245,45.75,137.49,137.45,0.12502]
[1728570556437,3.6405,137.48,137.45,0.12502]
[1728570556739,45.75,137.49,137.45,0.12502]
[1728570557040,45.75,137.47,137.39,0.12502]
[1728570557241,45.75,137.49,137.39,0.12502]
[1728570557644,49.3902,137.49,137.42,3.6419]
[1728570557842,45.75,137.49,137.39,0.12502]
[1728570558236,49.3901,137.49,137.45,3.6409]
[1728570558435,45.75,137.49,137.45,3.6409]
[1728570558639,0.12502,137.51,137.45,3.6409]
[1728570558834,3.6404,137.48,137.44,3.6413]
[1728570559137,49.47825887,137.49,137.39,0.12502]
[1728570559842,3.6407,137.47,137.43,3.6414]
[1728570560340,3.6412,137.45,137.41,3.642]
[1728570560544,3.6412,137.45,137.39,0.12502]
[1728570560843,45.75,137.46,137.39,0.12502]
[1728570561045,45.75,137.46,137.4,3.6424]
[1728570561744,45.75,137.46,137.42,3.6417]
[1728570561944,71.48825887,137.49,137.39,0.12502]
[1728570562244,45.75,137.45,137.4,3.6422]
[1728570562434,45.75,137.45,137.39,0.12502]
[1728570562641,3.6415,137.44,137.39,0.12502]
[1728570562846,45.75,137.45,137.39,0.12502]
[1728570563340,3.6415,137.44,137.39,0.12502]
[1728570563737,45.75,137.45,137.39,0.12502]
[1728570564142,45.75,137.45,137.4,3.6423]
[1728570564344,3.6415,137.44,137.4,3.6423]
[1728570564735,1.4455,137.48,137.43,3.6415]
[1728570564736,3.6407,137.47,137.43,3.6415]
[1728570565337,3.6408,137.46,137.43,3.6415]
[1728570565539,3.6408,137.46,137.42,3.6418]
[1728570567351,3.6415,137.44,137.4,3.6424]
[1728570567844,3.6414,137.44,137.4,3.6423]
[1728570568043,27.97,137.45,137.39,0.12502]
[1728570569847,3.642,137.42,137.39,0.12502]
[1728570570447,27.97,137.45,137.39,0.12502]
[1728570570748,27.97,137.43,137.39,0.12502]
[1728570571052,3.6422,137.41,137.39,0.12502]
[1728570571260,27.97,137.44,137.39,0.12502]
[1728570571544,3.6424,137.4,137.39,0.12502]
[1728570571738,3.6424,137.4,137.33,11.24502]
[1728570571739,27.97,137.42,137.33,0.12502]
[1728570571943,27.97,137.39,137.33,0.12502]
[1728570572145,3.6437,137.36,137.33,0.12502]
[1728570572342,31.65235043,137.39,137.33,0.12502]
[1728570572944,27.97,137.37,137.33,0.12502]
[1728570573146,3.644,137.34,137.33,0.12502]
[1728570573749,3.6451,137.3,137.27,3.77072]
[1728570574050,3.6451,137.3,137.27,0.12502]
[1728570574349,27.97,137.33,137.27,0.12502]
[1728570574843,3.6455,137.29,137.27,0.12502]
[1728570575043,27.97,137.3,137.27,0.12502]
[1728570575246,31.62735885,137.3,137.21,0.12502]
[1728570575555,3.6463,137.26,137.21,0.12502]
[1728570575863,11.14,137.27,137.21,0.12502]
[1728570576155,3.6472,137.22,137.21,0.12502]
[1728570576541,3.6468,137.24,137.21,0.12502]
[1728570577055,3.6462,137.26,137.21,3.77232]
[1728570577357,11.14,137.27,137.21,3.77232]
[1728570577856,3.6462,137.26,137.21,3.77232]
[1728570578046,11.14,137.27,137.21,0.12502]
[1728570578452,3.6465,137.25,137.21,0.12502]
[1728570578649,11.14,137.27,137.22,3.6471]
[1728570578858,3.6465,137.25,137.21,0.12502]
[1728570579155,11.14,137.27,137.21,0.12502]
[1728570579556,3.6465,137.25,137.21,0.12502]
[1728570579748,11.14,137.27,137.21,0.12502]
[1728570579950,11.14,137.27,137.22,3.6471]